Workbook

Sheet Caratula
A7: Modelo para el cálculo del costo nivelado de captura de CO2
A9: Hipótesis:
A11: Moneda: dólares constantes 2023, es decir sin considerar inflación.
A12: Impuestos: no considerados
A13: Período de cálculo para el flujo de fondos: 25 años
A14: Los costos así calculados son comparables con la mayoría de los estudios y análisis disponibles
A16: En verde aquellos parámetros que pueden ser modificados
A18: Hoja | B18: Contenido
A19: Resumen de resultados | B19: Resumen de los resultados obtenidos incluyendo: costo nivelado de la captura de CO2, CAPEX, OPEX para el proceso de captura de CO2, costo referencial de transporte de CO2, CAPEX y OPEX del proceso de síntesis de metanol y valores referenciales para el costo de producción de H2 e inversiones involucrada en el proceso de generación eléctrica renovable y proceso de electrólisis.
A20: Guía de uso | B20: Breve instructivo para actualizar los resultados ante variaciones en los supuestos de entrada
A21: Supuestos de entrada | B21: Supuestos para el cálculo
A22: Flujo de caja_LCOM | B22: Flujo de caja para captura de CO2, licuefacción y sintesis de metanol

Sheet Guía de uso
B2: Cálculo del costo nivelado de captura de CO2 y del costo nivelado del metanol
B4: Guía de uso
B5: El usuario podrá modificar los parámetros de entrada en verde en la pestaña "Supuestos de entrada".
B6: Luego debe dirigirse a la pestaña Flujo de caja_LCOM.
B7: Allí debe modificar el costo nivelado de captura de CO2 (que no considera ni el costo de licuefacción ni transporte) en la celda B32 hasta alcanzar la tasa de descuento deseada (valor en celda E31=0). (La tasa de descuento se modifica en la celda B23 de "Supuestos de entrada"
B8: Luego debe modificar el costo nivelado de licuefacción en la celda B47, hasta alcanzar nuevamente la tasa de descuento deseada (celda D46=0).
B9: Finalmente modificar el costo nivelado de metanol en la celda D71 hasta alcanzar la tasa de descuento deseada (celda E75=0).

Sheet Resumen de resultados
A1: Principales supuestos
A3: Balance de masa
A4: Cantidad de CO2 a capturar | B4: 0.237 | C4: Mton CO2
A5: Cantidad de hidrógeno estequiométrico | B5: 0.031 | C5: Mton
A6: Cantidad metanol estequiométrico | B6: =+B4*0.727272727272727 -> 0.1723636364 | C6: Mton metanol
A7: Cantidad metanol real | B7: 0.166 | C7: Mton metanol
A9: Parámetros económicos
A10: TIR (antes de impuestos) | B10: =+'Supuestos de entrada'!B23 -> 0.08
A11: Costo de electricidad (para proceso de captura de CO2) | B11: =+'Supuestos de entrada'!B11 -> 80 | C11: USD/MWh
A12: Costo nivelado de vapor para proceso de captura | B12: =+'Supuestos de entrada'!B12 -> 17.85 | C12: USD/ton vapor
A15: Resumen de resultados
A17: Proceso de captura de CO2
A18: VAN (CAPEX) - 25 años | D18: 106 USD | E18: =+NPV(B10,'Flujo de caja_LCOM'!E18:AE18) -> 49.65383774
A20: Costo nivelado de CO2 | D20: USD/ton CO2 | E20: =+'Flujo de caja_LCOM'!B32 -> 73.57
A22: Proceso de licuefacción y transporte
A23: VAN (CAPEX) - 25 años | D23: 106 USD | E23: =+NPV(B10,'Flujo de caja_LCOM'!E36:AE36) -> 8.916323731
A25: Costo nivelado de licuefacción | D25: USD/ton CO2 | E25: =+'Flujo de caja_LCOM'!B47 -> 12.02411524
A27: Costo de transporte | D27: USD/ton CO2 | E27: =+'Flujo de caja_LCOM'!B48 -> 14.7
A29: Proceso de síntesis de metanol
A31: VAN (CAPEX) - 25 años | D31: 106 USD | E31: =+NPV(B10,'Flujo de caja_LCOM'!E55:AE55) -> 45.20551166
A33: Costo nivelado de metanol | D33: USD/ton | E33: =+'Flujo de caja_LCOM'!D71 -> 886.7
A35: Valores referenciales
A36: Generación de energía eléctrica para el proceso de electrólisis (planta eólica dedicada)
A37: MW instalados | E37: 544.9 | F37: Estimación GME en función de modelo propio
A38: Factor de capacidad | E38: 0.35
A39: Costo de inversión unitario | D39: USD/kW | E39: 1250
A40: VAN (CAPEX) - 25 años | D40: 106 USD | E40: 681.125
A42: Costo nivelado de la electricidad (LCOE) | D42: USD/MWh | E42: 47.88
A44: Proceso de producción de H2 verde
A45: MW instalados de electrolizador | E45: 230 | F45: Estimación GME en función de modelo propio
A46: Horas de funcionamiento | E46: 0.7713159115
A47: Costo de inversión unitario | D47: USD/kW | E47: 1075
A48: VAN (CAPEX) - 25 años | D48: 106 USD | E48: 321.425
A50: Costo nivelado de Hidrógeno | D50: USD/kg | E50: 3.5995
A55: CAPEX por segmento de la cadena de valor
A56: CAPEX
A57: Captura de CO2 | B57: MUSD | C57: =+E18 -> 49.65383774
A58: Licuefacción y transporte de CO2 | B58: MUSD | C58: =+E23+E27*B4*0.3 -> 9.961493731
A59: Síntesis de metanol | B59: MUSD | C59: =+E31 -> 45.20551166
A60: Electrólisis | B60: MUSD | C60: =+E48 -> 321.425
A61: Generación eléctrica (para electrólisis) | B61: MUSD | C61: =+E40 -> 681.125
A66: Captura de CO2: costo de inversión por principales componentes
A67: Inversión inicial captura
A68: Intercambiador calor | B68: MUSD | C68: =+'Supuestos de entrada'!B36 -> 18.58856482
A69: Rebullidor stripper | B69: MUSD | C69: =+'Supuestos de entrada'!B41 -> 13.72340817
A70: Columna absorbedora | B70: MUSD | C70: =+'Supuestos de entrada'!B34 -> 8.294362844
A71: Bombas | B71: MUSD | C71: =+'Supuestos de entrada'!B31+'Supuestos de entrada'!B35+'Supuestos de entrada'!B37 -> 4.368700657
A72: Direct conctact cooler | B72: MUSD | C72: =+'Supuestos de entrada'!B32 -> 2.903827223
A73: Stripper | B73: MUSD | C73: =+'Supuestos de entrada'!B39 -> 2.636884435
A74: Enfriador amina pobre | B74: MUSD | C74: =+'Supuestos de entrada'!B38 -> 2.123044939
A75: Otros | B75: MUSD | C75: =+'Supuestos de entrada'!B30+'Supuestos de entrada'!B33+'Supuestos de entrada'!B40 -> 3.049895689

Sheet Supuestos de entrada
A3: Parámetros generales
A4: Cantidades físicas
A5: Cantidad de CO2 a capturar | B5: =+'Resumen de resultados'!B4 -> 0.237 | C5: Mton CO2
A6: Cantidad de hidrógeno estequiométrico | B6: =+'Resumen de resultados'!B5 -> 0.031 | C6: Mton
A7: Cantidad metanol estequiométrico | B7: =+'Resumen de resultados'!B6 -> 0.1723636364 | C7: Mton metanol
A8: Cantidad Metanol real | B8: =+'Resumen de resultados'!B7 -> 0.166 | C8: Mton metanol
A9: Costos unitarios
A10: Costo Hidrógeno | B10: 3.5995 | C10: USD/kg | D10: Estimación GME en función de modelo propio
A11: Costo electricidad | B11: 80 | C11: USD/MWh
A12: Costo vapor | B12: 17.85 | C12: USD/ton
A13: Costo Transporte CO2 | B13: 0.147 | C13: USD/tCO2/km
A14: Opex - componente fijo
A15: OPEX proceso captura | B15: 0.04 | C15: %
A16: OPEX licuefacción | B16: 0.06 | C16: %
A17: Consumos variables
A18: Consumo vapor Rebullidor stripper | B18: =48.7*8760 -> 426612 | C18: ton/año
A19: Consumo eléctrico planta combinada | B19: =1.83*8760/1000 -> 16.0308 | C19: GWh/año
A20: Consumo eléctrico licuefacción | B20: 1.82 | C20: MW
A21: Electricidad metanol específica | B21: 8.4 | C21: MW
A22: Otros
A23: Tasa de descuento | B23: 0.08 | C23: %
A24: km recorridos para el transporte de CO2 | B24: 100 | C24: km
A27: Proceso captura CO2
A28: Capacidad de captura | B28: MTCO2-año | G28: =+B5 -> 0.237 | H28: =+G28 -> 0.237 | I28: =+H28 -> 0.237 | J28: 0.237 | K28: 0.237 | L28: 0.237 | M28: 0.237 | N28: 0.237 | O28: 0.237 | P28: 0.237 | Q28: 0.237 | R28: 0.237 | S28: 0.237 | T28: 0.237 | U28: 0.237 | V28: 0.237 | W28: 0.237 | X28: 0.237 | Y28: 0.237 | Z28: 0.237 | AA28: 0.237 | AB28: 0.237 | AC28: 0.237 | AD28: 0.237 | AE28: 0.237
A29: CAPEX
A30: Soplante flue gas | B30: 1.768537 | C30: MUSD
A31: Bomba de recirculac. DCC | B31: 2.583736038 | C31: MUSD
A32: DCC (direct contact cooler) | B32: 2.903827223 | C32: MUSD
A33: Enfriador DCC | B33: 0.8492419265 | C33: MUSD
A34: Columna absorbedora | B34: 8.294362844 | C34: MUSD
A35: Bomba circ. Amina enriquecida | B35: 0.8020503751 | C35: MUSD
A36: Intercambiador de calor (amina enriq/amina pobre) | B36: 18.58856482 | C36: MUSD
A37: Bomba circ. Amina pobre | B37: 0.9829142441 | C37: MUSD
A38: Enfriador amina pobre | B38: 2.123044939 | C38: MUSD
A39: Stripper | B39: 2.636884435 | C39: MUSD
A40: Condensador de tope stripper | B40: 0.4321167626 | C40: MUSD
A41: Rebullidor stripper | B41: 13.72340817 | C41: MUSD
A42: Licuefacción | B42: 10 | C42: MUSD
A43: OPEX fijo
A44: Soplante flue gas | B44: =+$B$15*B30 -> 0.07074148 | C44: MUSD
A45: Bomba de recirculac. DCC | B45: 0.1033494415 | C45: MUSD
A46: DCC (direct contact cooler) | B46: 0.1161530889 | C46: MUSD
A47: Enfriador DCC | B47: 0.03396967706 | C47: MUSD
A48: Columna absorbedora | B48: 0.3317745138 | C48: MUSD
A49: Bomba circ. Amina enriquecida | B49: 0.03208201501 | C49: MUSD
A50: Intercambiador de calor (amina enriq/amina pobre) | B50: 0.7435425929 | C50: MUSD
A51: Bomba circ. Amina pobre | B51: 0.03931656976 | C51: MUSD
A52: Enfriador amina pobre | B52: 0.08492179757 | C52: MUSD
A53: Stripper | B53: 0.1054753774 | C53: MUSD
A54: Condensador de tope stripper | B54: 0.0172846705 | C54: MUSD
A55: Rebullidor stripper | B55: 0.548936327 | C55: MUSD
A56: Planta combinada (para consumo eléctrico) | B56: 0 | C56: MUSD
A57: Licuefacción | B57: =+$B$16*B42 -> 0.6 | C57: MUSD
A58: OPEX variable
A59: Consumo vapor Rebullidor stripper | B59: =+B18*B12/1000000 -> 7.6150242 | C59: MUSD
A60: Consumo eléctrico planta combinada | B60: =+B19*B11*1000/1000000 -> 1.282464 | C60: MUSD
A61: Columna absorbedora | B61: =(727945.2+159078.8)/1000000 -> 0.887024 | C61: MUSD
A65: Sintesis de metanol
A66: Capacidad | C66: Mton | G66: =+G67 -> 0.166 | H66: =+H67 -> 0.166 | I66: 0.166 | J66: 0.166 | K66: 0.166 | L66: 0.166 | M66: 0.166 | N66: 0.166 | O66: 0.166 | P66: 0.166 | Q66: 0.166 | R66: 0.166 | S66: 0.166 | T66: 0.166 | U66: 0.166 | V66: 0.166 | W66: 0.166 | X66: 0.166 | Y66: 0.166 | Z66: 0.166 | AA66: 0.166 | AB66: 0.166 | AC66: 0.166 | AD66: 0.166 | AE66: 0.166
A67: Metanol producido | C67: Mton | G67: =+$B$8 -> 0.166 | H67: 0.166 | I67: 0.166 | J67: 0.166 | K67: 0.166 | L67: 0.166 | M67: 0.166 | N67: 0.166 | O67: 0.166 | P67: 0.166 | Q67: 0.166 | R67: 0.166 | S67: 0.166 | T67: 0.166 | U67: 0.166 | V67: 0.166 | W67: 0.166 | X67: 0.166 | Y67: 0.166 | Z67: 0.166 | AA67: 0.166 | AB67: 0.166 | AC67: 0.166 | AD67: 0.166 | AE67: 0.166
A68: CAPEX | B68: 305.42 | C68: MUSD/capacidad instalada de producción
A69: OPEX | B69: 0.02 | C69: MUSD/Mton metanol

Sheet Flujo de caja_LCOM
A1: Flujo de caja (antes de impuestos)
A2: en USD constantes (sin inflación)
F4: 2025 | G4: =+F4+1 -> 2026 | H4: =+G4+1 -> 2027 | I4: 2028 | J4: 2029 | K4: 2030 | L4: 2031 | M4: 2032 | N4: 2033 | O4: 2034 | P4: 2035 | Q4: 2036 | R4: 2037 | S4: 2038 | T4: 2039 | U4: 2040 | V4: 2041 | W4: 2042 | X4: =+W4+1 -> 2043 | Y4: 2044 | Z4: 2045 | AA4: 2046 | AB4: 2047 | AC4: 2048 | AD4: 2049 | AE4: 2050
F5: 0 | G5: =+F5+1 -> 1 | H5: 2 | I5: 3 | J5: 4 | K5: 5 | L5: 6 | M5: 7 | N5: 8 | O5: 9 | P5: 10 | Q5: 11 | R5: 12 | S5: 13 | T5: 14 | U5: 15 | V5: 16 | W5: 17 | X5: 18 | Y5: 19 | Z5: 20 | AA5: 21 | AB5: 22 | AC5: 23 | AD5: 24 | AE5: 25
A7: Sintesis de metanol
A8: Capacidad | C8: Mton | G8: =+G9 -> 0.166 | H8: =+H9 -> 0.166 | I8: 0.166 | J8: 0.166 | K8: 0.166 | L8: 0.166 | M8: 0.166 | N8: 0.166 | O8: 0.166 | P8: 0.166 | Q8: 0.166 | R8: 0.166 | S8: 0.166 | T8: 0.166 | U8: 0.166 | V8: 0.166 | W8: 0.166 | X8: 0.166 | Y8: 0.166 | Z8: 0.166 | AA8: 0.166 | AB8: 0.166 | AC8: 0.166 | AD8: 0.166 | AE8: 0.166
A9: Metanol producido | C9: Mton | G9: =+'Supuestos de entrada'!$B$8 -> 0.166 | H9: =+'Supuestos de entrada'!$B$8 -> 0.166 | I9: =+'Supuestos de entrada'!$B$8 -> 0.166 | J9: =+'Supuestos de entrada'!$B$8 -> 0.166 | K9: =+'Supuestos de entrada'!$B$8 -> 0.166 | L9: =+'Supuestos de entrada'!$B$8 -> 0.166 | M9: =+'Supuestos de entrada'!$B$8 -> 0.166 | N9: =+'Supuestos de entrada'!$B$8 -> 0.166 | O9: =+'Supuestos de entrada'!$B$8 -> 0.166 | P9: =+'Supuestos de entrada'!$B$8 -> 0.166 | Q9: =+'Supuestos de entrada'!$B$8 -> 0.166 | R9: =+'Supuestos de entrada'!$B$8 -> 0.166 | S9: =+'Supuestos de entrada'!$B$8 -> 0.166 | T9: =+'Supuestos de entrada'!$B$8 -> 0.166 | U9: =+'Supuestos de entrada'!$B$8 -> 0.166 | V9: =+'Supuestos de entrada'!$B$8 -> 0.166 | W9: =+'Supuestos de entrada'!$B$8 -> 0.166 | X9: =+'Supuestos de entrada'!$B$8 -> 0.166 | Y9: =+'Supuestos de entrada'!$B$8 -> 0.166 | Z9: =+'Supuestos de entrada'!$B$8 -> 0.166 | AA9: =+'Supuestos de entrada'!$B$8 -> 0.166 | AB9: =+'Supuestos de entrada'!$B$8 -> 0.166 | AC9: =+'Supuestos de entrada'!$B$8 -> 0.166 | AD9: =+'Supuestos de entrada'!$B$8 -> 0.166 | AE9: =+'Supuestos de entrada'!$B$8 -> 0.166
A10: CAPEX | B10: =+'Supuestos de entrada'!B68 -> 305.42 | C10: MUSD/capacidad instalada de producción
A11: OPEX | B11: =+'Supuestos de entrada'!B69 -> 0.02 | C11: MUSD/Mton metanol
A16: Proceso de captura
A17: Inversión
A18: Costo de tecnología | C18: 106 USD | E18: =+SUM('Supuestos de entrada'!B30:B41)/2 -> 27.84434439 | F18: =+SUM('Supuestos de entrada'!B30:B41)/2 -> 27.84434439 | G18: 0 | H18: 0 | I18: 0 | J18: 0 | K18: 0 | L18: 0 | M18: 0 | N18: 0 | O18: 0 | P18: 0 | Q18: 0 | R18: 0 | S18: 0 | T18: 0 | U18: 0 | V18: 0 | W18: 0 | X18: 0 | Y18: 0 | Z18: 0 | AA18: 0 | AB18: 0 | AC18: 0 | AD18: 0 | AE18: 0
A19: Captura CO2 | C19: MTCO2 | G19: =+'Supuestos de entrada'!G28 -> 0.237 | H19: =+'Supuestos de entrada'!H28 -> 0.237 | I19: =+'Supuestos de entrada'!I28 -> 0.237 | J19: =+'Supuestos de entrada'!J28 -> 0.237 | K19: =+'Supuestos de entrada'!K28 -> 0.237 | L19: =+'Supuestos de entrada'!L28 -> 0.237 | M19: =+'Supuestos de entrada'!M28 -> 0.237 | N19: =+'Supuestos de entrada'!N28 -> 0.237 | O19: =+'Supuestos de entrada'!O28 -> 0.237 | P19: =+'Supuestos de entrada'!P28 -> 0.237 | Q19: =+'Supuestos de entrada'!Q28 -> 0.237 | R19: =+'Supuestos de entrada'!R28 -> 0.237 | S19: =+'Supuestos de entrada'!S28 -> 0.237 | T19: =+'Supuestos de entrada'!T28 -> 0.237 | U19: =+'Supuestos de entrada'!U28 -> 0.237 | V19: =+'Supuestos de entrada'!V28 -> 0.237 | W19: =+'Supuestos de entrada'!W28 -> 0.237 | X19: =+'Supuestos de entrada'!X28 -> 0.237 | Y19: =+'Supuestos de entrada'!Y28 -> 0.237 | Z19: =+'Supuestos de entrada'!Z28 -> 0.237 | AA19: =+'Supuestos de entrada'!AA28 -> 0.237 | AB19: =+'Supuestos de entrada'!AB28 -> 0.237 | AC19: =+'Supuestos de entrada'!AC28 -> 0.237 | AD19: =+'Supuestos de entrada'!AD28 -> 0.237 | AE19: =+'Supuestos de entrada'!AE28 -> 0.237
A20: Costos de operación
A21: OPEX componente fija | C21: 106 USD | G21: =+SUM('Supuestos de entrada'!B44:B56)+'Supuestos de entrada'!B61 -> 3.114571551 | H21: =+G21 -> 3.114571551 | I21: =+H21 -> 3.114571551 | J21: 3.114571551 | K21: 3.114571551 | L21: 3.114571551 | M21: 3.114571551 | N21: 3.114571551 | O21: 3.114571551 | P21: 3.114571551 | Q21: 3.114571551 | R21: 3.114571551 | S21: 3.114571551 | T21: 3.114571551 | U21: 3.114571551 | V21: 3.114571551 | W21: 3.114571551 | X21: 3.114571551 | Y21: 3.114571551 | Z21: 3.114571551 | AA21: 3.114571551 | AB21: 3.114571551 | AC21: 3.114571551 | AD21: 3.114571551 | AE21: 3.114571551
A22: Consumos variables:
A23: Electricidad consumida planta combinada | C23: GWh | G23: =+'Supuestos de entrada'!B19 -> 16.0308 | H23: =+G23 -> 16.0308 | I23: =+H23 -> 16.0308 | J23: 16.0308 | K23: 16.0308 | L23: 16.0308 | M23: 16.0308 | N23: 16.0308 | O23: 16.0308 | P23: 16.0308 | Q23: 16.0308 | R23: 16.0308 | S23: 16.0308 | T23: 16.0308 | U23: 16.0308 | V23: 16.0308 | W23: 16.0308 | X23: 16.0308 | Y23: 16.0308 | Z23: 16.0308 | AA23: 16.0308 | AB23: 16.0308 | AC23: 16.0308 | AD23: 16.0308 | AE23: 16.0308
A24: Vapor consumido | C24: Ton/año | G24: =+'Supuestos de entrada'!B18 -> 426612 | H24: =+G24 -> 426612 | I24: =+H24 -> 426612 | J24: 426612 | K24: 426612 | L24: 426612 | M24: 426612 | N24: 426612 | O24: 426612 | P24: 426612 | Q24: 426612 | R24: 426612 | S24: 426612 | T24: 426612 | U24: 426612 | V24: 426612 | W24: 426612 | X24: 426612 | Y24: 426612 | Z24: 426612 | AA24: 426612 | AB24: 426612 | AC24: 426612 | AD24: 426612 | AE24: 426612
A25: OPEX - componente variable | G25: =+SUM(G26:G27) -> 8.8974882 | H25: 8.8974882 | I25: 8.8974882 | J25: 8.8974882 | K25: 8.8974882 | L25: 8.8974882 | M25: 8.8974882 | N25: 8.8974882 | O25: 8.8974882 | P25: 8.8974882 | Q25: 8.8974882 | R25: 8.8974882 | S25: 8.8974882 | T25: 8.8974882 | U25: 8.8974882 | V25: 8.8974882 | W25: 8.8974882 | X25: 8.8974882 | Y25: 8.8974882 | Z25: 8.8974882 | AA25: 8.8974882 | AB25: 8.8974882 | AC25: 8.8974882 | AD25: 8.8974882 | AE25: 8.8974882
A26: Costo electricidad consumida | C26: MUSD | G26: =+G23*'Supuestos de entrada'!$B$11*1000/1000000 -> 1.282464 | H26: =+H23*'Supuestos de entrada'!$B$11*1000/1000000 -> 1.282464 | I26: =+I23*'Supuestos de entrada'!$B$11*1000/1000000 -> 1.282464 | J26: =+J23*'Supuestos de entrada'!$B$11*1000/1000000 -> 1.282464 | K26: =+K23*'Supuestos de entrada'!$B$11*1000/1000000 -> 1.282464 | L26: =+L23*'Supuestos de entrada'!$B$11*1000/1000000 -> 1.282464 | M26: =+M23*'Supuestos de entrada'!$B$11*1000/1000000 -> 1.282464 | N26: =+N23*'Supuestos de entrada'!$B$11*1000/1000000 -> 1.282464 | O26: =+O23*'Supuestos de entrada'!$B$11*1000/1000000 -> 1.282464 | P26: =+P23*'Supuestos de entrada'!$B$11*1000/1000000 -> 1.282464 | Q26: =+Q23*'Supuestos de entrada'!$B$11*1000/1000000 -> 1.282464 | R26: =+R23*'Supuestos de entrada'!$B$11*1000/1000000 -> 1.282464 | S26: =+S23*'Supuestos de entrada'!$B$11*1000/1000000 -> 1.282464 | T26: =+T23*'Supuestos de entrada'!$B$11*1000/1000000 -> 1.282464 | U26: =+U23*'Supuestos de entrada'!$B$11*1000/1000000 -> 1.282464 | V26: =+V23*'Supuestos de entrada'!$B$11*1000/1000000 -> 1.282464 | W26: =+W23*'Supuestos de entrada'!$B$11*1000/1000000 -> 1.282464 | X26: =+X23*'Supuestos de entrada'!$B$11*1000/1000000 -> 1.282464 | Y26: =+Y23*'Supuestos de entrada'!$B$11*1000/1000000 -> 1.282464 | Z26: =+Z23*'Supuestos de entrada'!$B$11*1000/1000000 -> 1.282464 | AA26: =+AA23*'Supuestos de entrada'!$B$11*1000/1000000 -> 1.282464 | AB26: =+AB23*'Supuestos de entrada'!$B$11*1000/1000000 -> 1.282464 | AC26: =+AC23*'Supuestos de entrada'!$B$11*1000/1000000 -> 1.282464 | AD26: =+AD23*'Supuestos de entrada'!$B$11*1000/1000000 -> 1.282464 | AE26: =+AE23*'Supuestos de entrada'!$B$11*1000/1000000 -> 1.282464
A27: Costo del vapor consumido | C27: MUSD | G27: =+G24*'Supuestos de entrada'!$B$12/1000000 -> 7.6150242 | H27: =+H24*'Supuestos de entrada'!$B$12/1000000 -> 7.6150242 | I27: =+I24*'Supuestos de entrada'!$B$12/1000000 -> 7.6150242 | J27: =+J24*'Supuestos de entrada'!$B$12/1000000 -> 7.6150242 | K27: =+K24*'Supuestos de entrada'!$B$12/1000000 -> 7.6150242 | L27: =+L24*'Supuestos de entrada'!$B$12/1000000 -> 7.6150242 | M27: =+M24*'Supuestos de entrada'!$B$12/1000000 -> 7.6150242 | N27: =+N24*'Supuestos de entrada'!$B$12/1000000 -> 7.6150242 | O27: =+O24*'Supuestos de entrada'!$B$12/1000000 -> 7.6150242 | P27: =+P24*'Supuestos de entrada'!$B$12/1000000 -> 7.6150242 | Q27: =+Q24*'Supuestos de entrada'!$B$12/1000000 -> 7.6150242 | R27: =+R24*'Supuestos de entrada'!$B$12/1000000 -> 7.6150242 | S27: =+S24*'Supuestos de entrada'!$B$12/1000000 -> 7.6150242 | T27: =+T24*'Supuestos de entrada'!$B$12/1000000 -> 7.6150242 | U27: =+U24*'Supuestos de entrada'!$B$12/1000000 -> 7.6150242 | V27: =+V24*'Supuestos de entrada'!$B$12/1000000 -> 7.6150242 | W27: =+W24*'Supuestos de entrada'!$B$12/1000000 -> 7.6150242 | X27: =+X24*'Supuestos de entrada'!$B$12/1000000 -> 7.6150242 | Y27: =+Y24*'Supuestos de entrada'!$B$12/1000000 -> 7.6150242 | Z27: =+Z24*'Supuestos de entrada'!$B$12/1000000 -> 7.6150242 | AA27: =+AA24*'Supuestos de entrada'!$B$12/1000000 -> 7.6150242 | AB27: =+AB24*'Supuestos de entrada'!$B$12/1000000 -> 7.6150242 | AC27: =+AC24*'Supuestos de entrada'!$B$12/1000000 -> 7.6150242 | AD27: =+AD24*'Supuestos de entrada'!$B$12/1000000 -> 7.6150242 | AE27: =+AE24*'Supuestos de entrada'!$B$12/1000000 -> 7.6150242
A30: Flujo de caja neto | C30: 106 USD | E30: =+-E18 -> -27.84434439 | F30: =+-F18 -> -27.84434439 | G30: =+$B$32*G19-G21-G28-G26-G27 -> 5.424030249 | H30: 5.424030249 | I30: 5.424030249 | J30: 5.424030249 | K30: 5.424030249 | L30: 5.424030249 | M30: 5.424030249 | N30: 5.424030249 | O30: 5.424030249 | P30: 5.424030249 | Q30: 5.424030249 | R30: 5.424030249 | S30: 5.424030249 | T30: 5.424030249 | U30: 5.424030249 | V30: 5.424030249 | W30: 5.424030249 | X30: 5.424030249 | Y30: 5.424030249 | Z30: 5.424030249 | AA30: 5.424030249 | AB30: 5.424030249 | AC30: 5.424030249 | AD30: 5.424030249 | AE30: 5.424030249
A31: TIR | D31: =+IRR(E30:AE30) -> 0.07996951896 | E31: =+D31-'Supuestos de entrada'!B23 -> -3.048104359e-05
A32: Costo captura de CO2 | B32: 73.57 | C32: USD/ton
A34: Proceso de licuefacción
A35: Inversión
A36: Costo de tecnología | C36: MUSD | E36: =+'Supuestos de entrada'!$B$42/2 -> 5 | F36: =+'Supuestos de entrada'!$B$42/2 -> 5 | G36: 0 | H36: 0 | I36: 0 | J36: 0 | K36: 0 | L36: 0 | M36: 0 | N36: 0 | O36: 0 | P36: 0 | Q36: 0 | R36: 0 | S36: 0 | T36: 0 | U36: 0 | V36: 0 | W36: 0 | X36: 0 | Y36: 0 | Z36: 0 | AA36: 0 | AB36: 0 | AC36: 0 | AD36: 0 | AE36: 0
A38: Captura CO2 | C38: MTCO2 | G38: =+'Supuestos de entrada'!$B$5 -> 0.237 | H38: =+G38 -> 0.237 | I38: =+H38 -> 0.237 | J38: 0.237 | K38: 0.237 | L38: 0.237 | M38: 0.237 | N38: 0.237 | O38: 0.237 | P38: 0.237 | Q38: 0.237 | R38: 0.237 | S38: 0.237 | T38: 0.237 | U38: 0.237 | V38: 0.237 | W38: 0.237 | X38: 0.237 | Y38: 0.237 | Z38: 0.237 | AA38: 0.237 | AB38: 0.237 | AC38: 0.237 | AD38: 0.237 | AE38: 0.237
A39: Costos de operación | G39: =+G40+G43 -> 1.875456 | H39: =+H40+H43 -> 1.875456 | I39: 1.875456 | J39: 1.875456 | K39: 1.875456 | L39: 1.875456 | M39: 1.875456 | N39: 1.875456 | O39: 1.875456 | P39: 1.875456 | Q39: 1.875456 | R39: 1.875456 | S39: 1.875456 | T39: 1.875456 | U39: 1.875456 | V39: 1.875456 | W39: 1.875456 | X39: 1.875456 | Y39: 1.875456 | Z39: 1.875456 | AA39: 1.875456 | AB39: 1.875456 | AC39: 1.875456 | AD39: 1.875456 | AE39: 1.875456
A40: OPEX componente fija | C40: 106 USD | G40: =+'Supuestos de entrada'!$B$57 -> 0.6 | H40: =+G40 -> 0.6 | I40: =+H40 -> 0.6 | J40: 0.6 | K40: 0.6 | L40: 0.6 | M40: 0.6 | N40: 0.6 | O40: 0.6 | P40: 0.6 | Q40: 0.6 | R40: 0.6 | S40: 0.6 | T40: 0.6 | U40: 0.6 | V40: 0.6 | W40: 0.6 | X40: 0.6 | Y40: 0.6 | Z40: 0.6 | AA40: 0.6 | AB40: 0.6 | AC40: 0.6 | AD40: 0.6 | AE40: 0.6
A41: Electricidad consumida licuefacción | C41: GWh | G41: =+'Supuestos de entrada'!$B$20*8.76 -> 15.9432 | H41: =+G41 -> 15.9432 | I41: =+H41 -> 15.9432 | J41: 15.9432 | K41: 15.9432 | L41: 15.9432 | M41: 15.9432 | N41: 15.9432 | O41: 15.9432 | P41: 15.9432 | Q41: 15.9432 | R41: 15.9432 | S41: 15.9432 | T41: 15.9432 | U41: 15.9432 | V41: 15.9432 | W41: 15.9432 | X41: 15.9432 | Y41: 15.9432 | Z41: 15.9432 | AA41: 15.9432 | AB41: 15.9432 | AC41: 15.9432 | AD41: 15.9432 | AE41: 15.9432
A42: OPEX - componente variable
A43: Costo electricidad consumida | C43: MUSD | G43: =+G41*'Supuestos de entrada'!$B$11*1000/1000000 -> 1.275456 | H43: =+G43 -> 1.275456 | I43: =+H43 -> 1.275456 | J43: 1.275456 | K43: 1.275456 | L43: 1.275456 | M43: 1.275456 | N43: 1.275456 | O43: 1.275456 | P43: 1.275456 | Q43: 1.275456 | R43: 1.275456 | S43: 1.275456 | T43: 1.275456 | U43: 1.275456 | V43: 1.275456 | W43: 1.275456 | X43: 1.275456 | Y43: 1.275456 | Z43: 1.275456 | AA43: 1.275456 | AB43: 1.275456 | AC43: 1.275456 | AD43: 1.275456 | AE43: 1.275456
A45: Flujo de caja neto | C45: 106 USD | E45: =-E36 -> -5 | F45: =-F36 -> -5 | G45: =+$B$47*G38-G40-G43 -> 0.9742593128 | H45: =+$B$47*H38-H40-H43 -> 0.9742593128 | I45: 0.9742593128 | J45: 0.9742593128 | K45: 0.9742593128 | L45: 0.9742593128 | M45: 0.9742593128 | N45: 0.9742593128 | O45: 0.9742593128 | P45: 0.9742593128 | Q45: 0.9742593128 | R45: 0.9742593128 | S45: 0.9742593128 | T45: 0.9742593128 | U45: 0.9742593128 | V45: 0.9742593128 | W45: 0.9742593128 | X45: 0.9742593128 | Y45: 0.9742593128 | Z45: 0.9742593128 | AA45: 0.9742593128 | AB45: 0.9742593128 | AC45: 0.9742593128 | AD45: 0.9742593128 | AE45: 0.9742593128
A46: TIR | D46: =+IRR(E45:AE45) -> 0.08000000121 | E46: =+D46-'Supuestos de entrada'!B23 -> 1.213806902e-09
A47: Costo licuefacción | B47: 12.02411524 | C47: USD/ton
A48: Costo de transporte (100km) | B48: =+'Supuestos de entrada'!B13*'Supuestos de entrada'!B24 -> 14.7 | C48: USD/ton
A53: Sintesis de metanol
A54: Inversión
A55: CAPEX | C55: MUSD | E55: =+B10*G8/2 -> 25.34986 | F55: =+B10*G8/2 -> 25.34986 | G55: 0 | H55: =+IF(H8>G8,(H8-G8)*$B$10,0) -> 0 | I55: 0 | J55: 0 | K55: 0 | L55: 0 | M55: 0 | N55: 0 | O55: 0 | P55: 0 | Q55: 0 | R55: 0 | S55: 0 | T55: 0 | U55: 0 | V55: 0 | W55: 0 | X55: 0 | Y55: 0 | Z55: 0 | AA55: 0 | AB55: 0 | AC55: 0 | AD55: 0 | AE55: 0
A56: Costos de operación fijos
A57: OPEX | C57: MUSD | G57: =+$B$11*$B$10*G9 -> 1.0139944 | H57: 1.0139944 | I57: 1.0139944 | J57: 1.0139944 | K57: 1.0139944 | L57: 1.0139944 | M57: 1.0139944 | N57: 1.0139944 | O57: 1.0139944 | P57: 1.0139944 | Q57: 1.0139944 | R57: 1.0139944 | S57: 1.0139944 | T57: 1.0139944 | U57: 1.0139944 | V57: 1.0139944 | W57: 1.0139944 | X57: 1.0139944 | Y57: 1.0139944 | Z57: 1.0139944 | AA57: 1.0139944 | AB57: 1.0139944 | AC57: 1.0139944 | AD57: 1.0139944 | AE57: 1.0139944
A58: Consumos variables
A59: Consumo electrico | C59: GWh | G59: =+'Supuestos de entrada'!$B$21*8760/1000 -> 73.584 | H59: =+'Supuestos de entrada'!$B$21*8760/1000 -> 73.584 | I59: =+'Supuestos de entrada'!$B$21*8760/1000 -> 73.584 | J59: =+'Supuestos de entrada'!$B$21*8760/1000 -> 73.584 | K59: =+'Supuestos de entrada'!$B$21*8760/1000 -> 73.584 | L59: =+'Supuestos de entrada'!$B$21*8760/1000 -> 73.584 | M59: =+'Supuestos de entrada'!$B$21*8760/1000 -> 73.584 | N59: =+'Supuestos de entrada'!$B$21*8760/1000 -> 73.584 | O59: =+'Supuestos de entrada'!$B$21*8760/1000 -> 73.584 | P59: =+'Supuestos de entrada'!$B$21*8760/1000 -> 73.584 | Q59: =+'Supuestos de entrada'!$B$21*8760/1000 -> 73.584 | R59: =+'Supuestos de entrada'!$B$21*8760/1000 -> 73.584 | S59: =+'Supuestos de entrada'!$B$21*8760/1000 -> 73.584 | T59: =+'Supuestos de entrada'!$B$21*8760/1000 -> 73.584 | U59: =+'Supuestos de entrada'!$B$21*8760/1000 -> 73.584 | V59: =+'Supuestos de entrada'!$B$21*8760/1000 -> 73.584 | W59: =+'Supuestos de entrada'!$B$21*8760/1000 -> 73.584 | X59: =+'Supuestos de entrada'!$B$21*8760/1000 -> 73.584 | Y59: =+'Supuestos de entrada'!$B$21*8760/1000 -> 73.584 | Z59: =+'Supuestos de entrada'!$B$21*8760/1000 -> 73.584 | AA59: =+'Supuestos de entrada'!$B$21*8760/1000 -> 73.584 | AB59: =+'Supuestos de entrada'!$B$21*8760/1000 -> 73.584 | AC59: =+'Supuestos de entrada'!$B$21*8760/1000 -> 73.584 | AD59: =+'Supuestos de entrada'!$B$21*8760/1000 -> 73.584 | AE59: =+'Supuestos de entrada'!$B$21*8760/1000 -> 73.584
A60: Consumo CO2 | C60: MTCO2 | G60: =+'Supuestos de entrada'!G28 -> 0.237 | H60: =+'Supuestos de entrada'!H28 -> 0.237 | I60: =+'Supuestos de entrada'!I28 -> 0.237 | J60: =+'Supuestos de entrada'!J28 -> 0.237 | K60: =+'Supuestos de entrada'!K28 -> 0.237 | L60: =+'Supuestos de entrada'!L28 -> 0.237 | M60: =+'Supuestos de entrada'!M28 -> 0.237 | N60: =+'Supuestos de entrada'!N28 -> 0.237 | O60: =+'Supuestos de entrada'!O28 -> 0.237 | P60: =+'Supuestos de entrada'!P28 -> 0.237 | Q60: =+'Supuestos de entrada'!Q28 -> 0.237 | R60: =+'Supuestos de entrada'!R28 -> 0.237 | S60: =+'Supuestos de entrada'!S28 -> 0.237 | T60: =+'Supuestos de entrada'!T28 -> 0.237 | U60: =+'Supuestos de entrada'!U28 -> 0.237 | V60: =+'Supuestos de entrada'!V28 -> 0.237 | W60: =+'Supuestos de entrada'!W28 -> 0.237 | X60: =+'Supuestos de entrada'!X28 -> 0.237 | Y60: =+'Supuestos de entrada'!Y28 -> 0.237 | Z60: =+'Supuestos de entrada'!Z28 -> 0.237 | AA60: =+'Supuestos de entrada'!AA28 -> 0.237 | AB60: =+'Supuestos de entrada'!AB28 -> 0.237 | AC60: =+'Supuestos de entrada'!AC28 -> 0.237 | AD60: =+'Supuestos de entrada'!AD28 -> 0.237 | AE60: =+'Supuestos de entrada'!AE28 -> 0.237
A61: Consumo de hidrógeno | C61: MTH2 | G61: =+'Supuestos de entrada'!B6 -> 0.031 | H61: =+G61 -> 0.031 | I61: =+H61 -> 0.031 | J61: 0.031 | K61: 0.031 | L61: 0.031 | M61: 0.031 | N61: 0.031 | O61: 0.031 | P61: 0.031 | Q61: 0.031 | R61: 0.031 | S61: 0.031 | T61: 0.031 | U61: 0.031 | V61: 0.031 | W61: 0.031 | X61: 0.031 | Y61: 0.031 | Z61: 0.031 | AA61: 0.031 | AB61: 0.031 | AC61: 0.031 | AD61: 0.031 | AE61: 0.031
A62: Costos unitarios
A63: Costo eléctrico unitario | C63: USD/MWh | G63: =+'Supuestos de entrada'!B11 -> 80 | H63: =+G63 -> 80 | I63: =+H63 -> 80 | J63: 80 | K63: 80 | L63: 80 | M63: 80 | N63: 80 | O63: 80 | P63: 80 | Q63: 80 | R63: 80 | S63: 80 | T63: 80 | U63: 80 | V63: 80 | W63: 80 | X63: 80 | Y63: 80 | Z63: 80 | AA63: 80 | AB63: 80 | AC63: 80 | AD63: 80 | AE63: 80
A64: Costo hidrógeno unitario | C64: USD/kg o MUSD/mil ton | G64: =+'Supuestos de entrada'!B10 -> 3.5995 | H64: =+G64 -> 3.5995 | I64: =+H64 -> 3.5995 | J64: 3.5995 | K64: 3.5995 | L64: 3.5995 | M64: 3.5995 | N64: 3.5995 | O64: 3.5995 | P64: 3.5995 | Q64: 3.5995 | R64: 3.5995 | S64: 3.5995 | T64: 3.5995 | U64: 3.5995 | V64: 3.5995 | W64: 3.5995 | X64: 3.5995 | Y64: 3.5995 | Z64: 3.5995 | AA64: 3.5995 | AB64: 3.5995 | AC64: 3.5995 | AD64: 3.5995 | AE64: 3.5995
A65: Costo CO2 unitario | C65: USD/Mton | G65: =+B32+B48+B47 -> 100.2941152 | H65: =+G65 -> 100.2941152 | I65: =+H65 -> 100.2941152 | J65: 100.2941152 | K65: 100.2941152 | L65: 100.2941152 | M65: 100.2941152 | N65: 100.2941152 | O65: 100.2941152 | P65: 100.2941152 | Q65: 100.2941152 | R65: 100.2941152 | S65: 100.2941152 | T65: 100.2941152 | U65: 100.2941152 | V65: 100.2941152 | W65: 100.2941152 | X65: 100.2941152 | Y65: 100.2941152 | Z65: 100.2941152 | AA65: 100.2941152 | AB65: 100.2941152 | AC65: 100.2941152 | AD65: 100.2941152 | AE65: 100.2941152
A66: OPEX variables | G66: =+SUM(G67:G69) -> 141.2409253 | H66: =+SUM(H67:H69) -> 141.2409253 | I66: 141.2409253 | J66: 141.2409253 | K66: 141.2409253 | L66: 141.2409253 | M66: 141.2409253 | N66: 141.2409253 | O66: 141.2409253 | P66: 141.2409253 | Q66: 141.2409253 | R66: 141.2409253 | S66: 141.2409253 | T66: 141.2409253 | U66: 141.2409253 | V66: 141.2409253 | W66: 141.2409253 | X66: 141.2409253 | Y66: 141.2409253 | Z66: 141.2409253 | AA66: 141.2409253 | AB66: 141.2409253 | AC66: 141.2409253 | AD66: 141.2409253 | AE66: 141.2409253
A67: Costo electricidad | C67: MUSD | G67: =+G63*G59*1000/1000000 -> 5.88672 | H67: =+H63*H59*1000/1000000 -> 5.88672 | I67: 5.88672 | J67: 5.88672 | K67: 5.88672 | L67: 5.88672 | M67: 5.88672 | N67: 5.88672 | O67: 5.88672 | P67: 5.88672 | Q67: 5.88672 | R67: 5.88672 | S67: 5.88672 | T67: 5.88672 | U67: 5.88672 | V67: 5.88672 | W67: 5.88672 | X67: 5.88672 | Y67: 5.88672 | Z67: 5.88672 | AA67: 5.88672 | AB67: 5.88672 | AC67: 5.88672 | AD67: 5.88672 | AE67: 5.88672
A68: Costo del hidrógeno | C68: MUSD | G68: =+G61*G64*1000 -> 111.5845 | H68: =+H61*H64*1000 -> 111.5845 | I68: 111.5845 | J68: 111.5845 | K68: 111.5845 | L68: 111.5845 | M68: 111.5845 | N68: 111.5845 | O68: 111.5845 | P68: 111.5845 | Q68: 111.5845 | R68: 111.5845 | S68: 111.5845 | T68: 111.5845 | U68: 111.5845 | V68: 111.5845 | W68: 111.5845 | X68: 111.5845 | Y68: 111.5845 | Z68: 111.5845 | AA68: 111.5845 | AB68: 111.5845 | AC68: 111.5845 | AD68: 111.5845 | AE68: 111.5845
A69: Costo del CO2 | C69: MUSD | G69: =+G65*G60 -> 23.76970531 | H69: =+H65*H60 -> 23.76970531 | I69: 23.76970531 | J69: 23.76970531 | K69: 23.76970531 | L69: 23.76970531 | M69: 23.76970531 | N69: 23.76970531 | O69: 23.76970531 | P69: 23.76970531 | Q69: 23.76970531 | R69: 23.76970531 | S69: 23.76970531 | T69: 23.76970531 | U69: 23.76970531 | V69: 23.76970531 | W69: 23.76970531 | X69: 23.76970531 | Y69: 23.76970531 | Z69: 23.76970531 | AA69: 23.76970531 | AB69: 23.76970531 | AC69: 23.76970531 | AD69: 23.76970531 | AE69: 23.76970531
A70: Resultados
A71: Costo metanol unitario | C71: USD/Tmetanol | D71: 886.7
A72: Ingresos por venta de metanol | C72: MUSD | G72: =+$D$71*G9 -> 147.1922 | H72: 147.1922 | I72: 147.1922 | J72: 147.1922 | K72: 147.1922 | L72: 147.1922 | M72: 147.1922 | N72: 147.1922 | O72: 147.1922 | P72: 147.1922 | Q72: 147.1922 | R72: 147.1922 | S72: 147.1922 | T72: 147.1922 | U72: 147.1922 | V72: 147.1922 | W72: 147.1922 | X72: 147.1922 | Y72: 147.1922 | Z72: 147.1922 | AA72: 147.1922 | AB72: 147.1922 | AC72: 147.1922 | AD72: 147.1922 | AE72: 147.1922
A73: Costos proceso metanol | C73: MUSD | G73: =+G67+G68+G69+G57+G55 -> 142.2549197 | H73: 142.2549197 | I73: 142.2549197 | J73: 142.2549197 | K73: 142.2549197 | L73: 142.2549197 | M73: 142.2549197 | N73: 142.2549197 | O73: 142.2549197 | P73: 142.2549197 | Q73: 142.2549197 | R73: 142.2549197 | S73: 142.2549197 | T73: 142.2549197 | U73: 142.2549197 | V73: 142.2549197 | W73: 142.2549197 | X73: 142.2549197 | Y73: 142.2549197 | Z73: 142.2549197 | AA73: 142.2549197 | AB73: 142.2549197 | AC73: 142.2549197 | AD73: 142.2549197 | AE73: 142.2549197
A74: Flujo de caja neto | C74: 106 USD | E74: =-E55 -> -25.34986 | F74: =-F55 -> -25.34986 | G74: =+G72-G73 -> 4.937280287 | H74: =+H72-H73 -> 4.937280287 | I74: 4.937280287 | J74: 4.937280287 | K74: 4.937280287 | L74: 4.937280287 | M74: 4.937280287 | N74: 4.937280287 | O74: 4.937280287 | P74: 4.937280287 | Q74: 4.937280287 | R74: 4.937280287 | S74: 4.937280287 | T74: 4.937280287 | U74: 4.937280287 | V74: 4.937280287 | W74: 4.937280287 | X74: 4.937280287 | Y74: 4.937280287 | Z74: 4.937280287 | AA74: 4.937280287 | AB74: 4.937280287 | AC74: 4.937280287 | AD74: 4.937280287 | AE74: 4.937280287
A75: TIR antes de impuestos | D75: =+IRR(E74:AE74) -> 0.07995092174 | E75: =+D75-'Supuestos de entrada'!B23 -> -4.907826154e-05

Sheet Curva electrolizadores (hidden)
A3: P/Pnom | B3: Alcalina | C3: PEM
A4: 0 | B4: 0 | C4: 0
A5: 0.01 | B5: 0 | C5: 0
A6: 0.02 | B6: 0 | C6: 0
A7: 0.03 | B7: 0 | C7: 0.009043694742
A8: 0.04 | B8: 0 | C8: 0.09913529104
A9: 0.05 | B9: 0 | C9: 0.2470995722
A10: 0.06 | B10: 0 | C10: 0.3312971692
A11: 0.07 | B11: 0 | C11: 0.4731976369
A12: 0.08 | B12: 0 | C12: 0.5488674417
A13: 0.09 | B13: 0 | C13: 0.6283918071
A14: 0.1 | B14: 0 | C14: 0.6938216304
A15: 0.11 | B15: 0 | C15: 0.7412543609
A16: 0.12 | B16: 0 | C16: 0.7686105071
A17: 0.13 | B17: 0 | C17: 0.7956602176
A18: 0.14 | B18: 0 | C18: 0.8169322689
A19: 0.15 | B19: 0 | C19: 0.8382043203
A20: 0.16 | B20: 0 | C20: 0.8543006507
A21: 0.17 | B21: 0 | C21: 0.8692700706
A22: 0.18 | B22: 0 | C22: 0.8824079812
A23: 0.19 | B23: 0 | C23: 0.8910039782
A24: 0.2 | B24: 0 | C24: 0.8995999753
A25: 0.21 | B25: 0.9030586782 | C25: 0.9030586782
A26: 0.22 | B26: 0.9120051868 | C26: 0.9120051868
A27: 0.23 | B27: 0.9212067804 | C27: 0.9212067804
A28: 0.24 | B28: 0.9306120661 | C28: 0.9306120661
A29: 0.25 | B29: 0.939986332 | C29: 0.939986332
A30: 0.26 | B30: 0.948536668 | C30: 0.948536668
A31: 0.27 | B31: 0.953903735 | C31: 0.953903735
A32: 0.28 | B32: 0.9583390097 | C32: 0.9583390097
A33: 0.29 | B33: 0.9627742844 | C33: 0.9627742844
A34: 0.3 | B34: 0.966984669 | C34: 0.966984669
A35: 0.31 | B35: 0.9711488694 | C35: 0.9711488694
A36: 0.32 | B36: 0.9753130699 | C36: 0.9753130699
A37: 0.33 | B37: 0.9789452585 | C37: 0.9789452585
A38: 0.34 | B38: 0.9810754051 | C38: 0.9810754051
A39: 0.35 | B39: 0.9832055516 | C39: 0.9832055516
A40: 0.36 | B40: 0.9853356981 | C40: 0.9853356981
A41: 0.37 | B41: 0.9874667634 | C41: 0.9874667634
A42: 0.38 | B42: 0.9896238007 | C42: 0.9896238007
A43: 0.39 | B43: 0.991780838 | C43: 0.991780838
A44: 0.4 | B44: 0.9932804683 | C44: 0.9932804683
A45: 0.41 | B45: 0.9941956025 | C45: 0.9941956025
A46: 0.42 | B46: 0.9951107368 | C46: 0.9951107368
A47: 0.43 | B47: 0.996025871 | C47: 0.996025871
A48: 0.44 | B48: 0.9967968295 | C48: 0.9967968295
A49: 0.45 | B49: 0.997468974 | C49: 0.997468974
A50: 0.46 | B50: 0.9981411185 | C50: 0.9981411185
A51: 0.47 | B51: 0.9984886014 | C51: 0.9984886014
A52: 0.48 | B52: 0.9988054863 | C52: 0.9988054863
A53: 0.49 | B53: 0.9991159619 | C53: 0.9991159619
A54: 0.5 | B54: 0.999344026 | C54: 0.999344026
A55: 0.51 | B55: 0.9995720901 | C55: 0.9995720901
A56: 0.52 | B56: 0.9998001542 | C56: 0.9998001542
A57: 0.53 | B57: 0.9999846887 | C57: 0.9999846887
A58: 0.54 | B58: 0.999860941 | C58: 0.999860941
A59: 0.55 | B59: 0.9997371934 | C59: 0.9997371934
A60: 0.56 | B60: 0.9996134457 | C60: 0.9996134457
A61: 0.57 | B61: 0.9993964158 | C61: 0.9993964158
A62: 0.58 | B62: 0.9990804513 | C62: 0.9990804513
A63: 0.59 | B63: 0.9987644867 | C63: 0.9987644867
A64: 0.6 | B64: 0.9984234714 | C64: 0.9984234714
A65: 0.61 | B65: 0.9980680758 | C65: 0.9980680758
A66: 0.62 | B66: 0.9977054781 | C66: 0.9977054781
A67: 0.63 | B67: 0.9972791427 | C67: 0.9972791427
A68: 0.64 | B68: 0.9968528073 | C68: 0.9968528073
A69: 0.65 | B69: 0.9964264719 | C69: 0.9964264719
A70: 0.66 | B70: 0.9959159375 | C70: 0.9959159375
A71: 0.67 | B71: 0.9953993821 | C71: 0.9953993821
A72: 0.68 | B72: 0.9948828266 | C72: 0.9948828266
A73: 0.69 | B73: 0.9943043312 | C73: 0.9943043312
A74: 0.7 | B74: 0.993649122 | C74: 0.993649122
A75: 0.71 | B75: 0.9929939127 | C75: 0.9929939127
A76: 0.72 | B76: 0.9923387034 | C76: 0.9923387034
A77: 0.73 | B77: 0.991665881 | C77: 0.991665881
A78: 0.74 | B78: 0.990956249 | C78: 0.990956249
A79: 0.75 | B79: 0.990246617 | C79: 0.990246617
A80: 0.76 | B80: 0.9895369851 | C80: 0.9895369851
A81: 0.77 | B81: 0.9888273531 | C81: 0.9888273531
A82: 0.78 | B82: 0.9881177211 | C82: 0.9881177211
A83: 0.79 | B83: 0.9873747279 | C83: 0.9873747279
A84: 0.8 | B84: 0.9866107005 | C84: 0.9866107005
A85: 0.81 | B85: 0.9858466731 | C85: 0.9858466731
A86: 0.82 | B86: 0.9850826458 | C86: 0.9850826458
A87: 0.83 | B87: 0.9842876564 | C87: 0.9842876564
A88: 0.84 | B88: 0.9834602023 | C88: 0.9834602023
A89: 0.85 | B89: 0.9826327481 | C89: 0.9826327481
A90: 0.86 | B90: 0.9818052939 | C90: 0.9818052939
A91: 0.87 | B91: 0.9809892665 | C91: 0.9809892665
A92: 0.88 | B92: 0.9801786363 | C92: 0.9801786363
A93: 0.89 | B93: 0.979368006 | C93: 0.979368006
A94: 0.9 | B94: 0.9785573757 | C94: 0.9785573757
A95: 0.91 | B95: 0.9777533121 | C95: 0.9777533121
A96: 0.92 | B96: 0.976970534 | C96: 0.976970534
A97: 0.93 | B97: 0.9761877559 | C97: 0.9761877559
A98: 0.94 | B98: 0.9754049779 | C98: 0.9754049779
A99: 0.95 | B99: 0.9746221998 | C99: 0.9746221998
A100: 0.96 | B100: 0.973851314 | C100: 0.973851314
A101: 0.97 | B101: 0.9730872867 | C101: 0.9730872867
A102: 0.98 | B102: 0.9723232593 | C102: 0.9723232593
A103: 0.99 | B103: 0.9715592319 | C103: 0.9715592319
A104: 1 | B104: 0.9715592319 | C104: 0.9715592319
A105: 1.01 | B105: 0 | C105: 0.9711772182
A106: 1.02 | B106: 0 | C106: 0.9707952045
A107: 1.03 | B107: 0 | C107: 0.9704131909
A108: 1.04 | B108: 0 | C108: 0.9700311772
A109: 1.05 | B109: 0 | C109: 0.9696491635
A110: 1.06 | B110: 0 | C110: 0.9692671498
A111: 1.07 | B111: 0 | C111: 0.9688851361
A112: 1.08 | B112: 0 | C112: 0.9685031224
A113: 1.09 | B113: 0 | C113: 0.9681211088
A114: 1.1 | B114: 0 | C114: 0.9677390951
A115: 1.11 | B115: 0 | C115: 0.9673570814
A116: 1.12 | B116: 0 | C116: 0.9669750677
A117: 1.13 | B117: 0 | C117: 0.966593054
A118: 1.14 | B118: 0 | C118: 0.9662110403
A119: 1.15 | B119: 0 | C119: 0.9658290266
A120: 1.16 | B120: 0 | C120: 0.965447013
A121: 1.17 | B121: 0 | C121: 0.9650649993
A122: 1.18 | B122: 0 | C122: 0.9646829856
A123: 1.19 | B123: 0 | C123: 0.9643009719
A124: 1.2 | B124: 0 | C124: 0.9639189582
A125: 1.21 | B125: 0 | C125: 0.9635369445
A126: 1.22 | B126: 0 | C126: 0.9631549309
A127: 1.23 | B127: 0 | C127: 0.9627729172
A128: 1.24 | B128: 0 | C128: 0.9623909035
A129: 1.25 | B129: 0 | C129: 0.9620088898
A130: 1.26 | B130: 0 | C130: 0.9616268761
A131: 1.27 | B131: 0 | C131: 0.9612448624
A132: 1.28 | B132: 0 | C132: 0.9608628488
A133: 1.29 | B133: 0 | C133: 0.9604808351
A134: 1.3 | B134: 0 | C134: 0.9600988214
A135: 1.31 | B135: 0 | C135: 0.9597168077
A136: 1.32 | B136: 0 | C136: 0.959334794
A137: 1.33 | B137: 0 | C137: 0.9589527803
A138: 1.34 | B138: 0 | C138: 0.9585707666
A139: 1.35 | B139: 0 | C139: 0.958188753
A140: 1.36 | B140: 0 | C140: 0.9578067393
A141: 1.37 | B141: 0 | C141: 0.9574247256
A142: 1.38 | B142: 0 | C142: 0.9570427119
A143: 1.39 | B143: 0 | C143: 0.9566606982
A144: 1.4 | B144: 0 | C144: 0.9562786845
A145: 1.41 | B145: 0 | C145: 0.9558966709
A146: 1.42 | B146: 0 | C146: 0.9555146572
A147: 1.43 | B147: 0 | C147: 0.9551326435
A148: 1.44 | B148: 0 | C148: 0.9547506298
A149: 1.45 | B149: 0 | C149: 0.9543686161
A150: 1.46 | B150: 0 | C150: 0.9539866024
A151: 1.47 | B151: 0 | C151: 0.9536045887
A152: 1.48 | B152: 0 | C152: 0.9532225751
A153: 1.49 | B153: 0 | C153: 0.9528405614
A154: 1.5 | B154: 0 | C154: 0.9524585477
A155: 1.51 | B155: 0 | C155: 0.952076534
A156: 1.52 | B156: 0 | C156: 0.9516945203
A157: 1.53 | B157: 0 | C157: 0.9513125066
A158: 1.54 | B158: 0 | C158: 0.950930493
A159: 1.55 | B159: 0 | C159: 0.9505484793
A160: 1.56 | B160: 0 | C160: 0.9501664656
A161: 1.57 | B161: 0 | C161: 0.9497844519
A162: 1.58 | B162: 0 | C162: 0.9494024382
A163: 1.59 | B163: 0 | C163: 0.9490204245
A164: 1.6 | B164: 0 | C164: 0.9486384109
